fUSD/lending_fUSD_20250227
["ID","MTS","AMOUNT","RATE_DAILY","PERIOD"]
[354705267,1740633032149,-352.28710027,0.000269,4]
[354705268,1740633032158,-250.0,0.00027,2]
[354705269,1740633032167,-150.0,0.00028,2]
[354705270,1740633032177,-352.2871001,0.00028314,5]
[354705271,1740633032185,-500.0,0.000286,2]
[354705272,1740633032194,-300.0,0.00029,2]
[354705273,1740633032203,-450.0,0.000297,2]
[354705274,1740633032212,-150.0,0.000297,2]
[354705275,1740633032222,-352.2871001,0.00029728,5]
[354705276,1740633032231,-350.0,0.00031,2]
[354705277,1740633032240,-500.0,0.00031035,30]
[354705278,1740633032249,-500.0,0.00031035,30]
[354705279,1740633032259,-500.0,0.00031035,30]
[354705280,1740633032268,-500.0,0.00031035,30]
[354705281,1740633032277,-500.0,0.00031035,30]
[354705282,1740633032286,-500.0,0.00031035,30]
[354705283,1740633032295,-500.0,0.00031035,30]
[354705284,1740633032304,-500.0,0.00031035,30]
[354705285,1740633032313,-500.0,0.00031035,30]
[354705286,1740633032322,-500.0,0.00031035,30]
[354705287,1740633032331,-500.0,0.00031035,30]
[354705288,1740633032341,-500.0,0.00031035,30]
[354705289,1740633032350,-500.0,0.00031035,30]
[354705290,1740633032359,-500.0,0.00031035,30]
[354705291,1740633032368,-500.0,0.00031035,30]
[354705292,1740633032377,-500.0,0.00031035,30]
[354705293,1740633032386,-500.0,0.00031035,30]
[354705294,1740633032395,-500.0,0.00031035,30]
[354705295,1740633032404,-352.2871001,0.00031141,5]
[354705296,1740633032415,-352.2871001,0.00032555,6]
[354705297,1740633032426,-400.0,0.00033,2]
[354705298,1740633032435,-352.2871001,0.00033969,6]
[354705299,1740633032444,-150.0,0.000345,2]
[354705300,1740633032454,-450.0,0.00035,2]
[354705301,1740633032464,-352.2871001,0.00035383,7]
[354705302,1740633032473,-152.88,0.00036027,2]
[354705303,1740633032482,-500.0,0.00037,2]
[354705304,1740633032491,-170.23816829,0.000372,103]
[354705305,1740633032501,-550.0,0.00039,2]
[354705306,1740633032511,-164.41385766,0.00041096,2]
[354705307,1740633032520,-150.0,0.000411,2]
[354705308,1740633032529,-152.88,0.00045205,2]
[354705309,1740633032538,-500.0,0.00046141,2]
[354705310,1740633032547,-150.0,0.00046372,7]
[354705311,1740633032556,-1000.0,0.00046748,2]
[354705312,1740633032565,-151.81,0.00046808,120]
[354705313,1740633032575,-423.54,0.00046833,2]
[354705314,1740633032584,-1500.0,0.0004684,120]
[354705315,1740633032593,-150.0,0.00046913,2]
[354705316,1740633032602,-1157.441,0.00047074,79]
[354705317,1740633032611,-1276.0,0.00047769,2]
[354705318,1740633032622,-2026.0,0.00047769,2]
[354705319,1740633032631,-569.0,0.00047769,2]
[354705320,1740633032641,-1623.0,0.00047769,2]
[354705321,1740633032650,-784.0,0.00047769,2]
[354705322,1740633032659,-539.0,0.00047769,2]
[354705323,1740633032669,-908.0,0.00047769,2]
[354705324,1740633032678,-1266.0,0.00047769,2]
[354705325,1740633032687,-4031.0,0.00047769,2]
[354705326,1740633032696,-150.0,0.00047769,2]
[354705327,1740633032705,-3919.0,0.00047769,2]
[354705328,1740633032715,-1009.0,0.00047769,2]
[354705329,1740633032724,-302.71902848,0.000478,10]
[354705330,1740633032733,-159.4,0.00049651,2]
[354705331,1740633032742,-2000.0,0.0004987,120]
[354705332,1740633032751,-659.0,0.0005,13]
[354705333,1740633032761,-250.0,0.00050063,120]
[354705334,1740633032770,-23900.0,0.00050153,2]
[354705335,1740633032779,-200.0,0.00050378,2]
[354705336,1740633032788,-298.0,0.00050769,120]
[354705337,1740633032797,-164.0,0.00050769,120]
[354705338,1740633032806,-442.0,0.00052456,30]
[354705339,1740633032815,-522.23311102,0.000525,10]
[354705340,1740633032824,-1000.0,0.00052591,120]
[354705341,1740633032833,-442.0,0.00052997,30]
[354705342,1740633032843,-17484.90024118,0.00053437,15]
[354705343,1740633032852,-442.0,0.00053537,30]
[354705344,1740633032861,-442.0,0.00054078,30]
[354705345,1740633032872,-180.813797,0.00054078,30]
[354705346,1740633032882,-152.88,0.00054384,120]
[354705347,1740633032891,-442.0,0.00054619,30]
[354705348,1740633032900,-200.0,0.00054856,120]
[354705349,1740633032909,-17484.90024109,0.00054888,15]
[354705350,1740633032919,-2090.37,0.0005499,2]
[354705351,1740633032928,-442.0,0.0005516,30]
[354705352,1740633032937,-1252.0,0.00055498,120]
[354705353,1740633032946,-1252.0,0.00055498,120]
[354705354,1740633032956,-1252.0,0.00055498,120]
[354705355,1740633032964,-1252.0,0.00055498,120]
[354705356,1740633032974,-442.0,0.00055701,30]
[354705357,1740633032983,-301.06,0.00056255,30]
[354705358,1740633032991,-17484.90024109,0.0005634,15]
[354705359,1740633033000,-1252.0,0.00056498,120]
[354705360,1740633033009,-1252.0,0.00056498,120]
[354705361,1740633033018,-1252.0,0.00056498,120]
[354705362,1740633033027,-1252.0,0.00056498,120]
[354705363,1740633033037,-1252.0,0.00057498,120]
[354705364,1740633033046,-1252.0,0.00057498,120]
[354705365,1740633033055,-1252.0,0.00057498,120]
[354705366,1740633033064,-1252.0,0.00057498,120]
[354705367,1740633033074,-1252.0,0.00057498,120]
[354705368,1740633033083,-1252.0,0.00057498,120]
[354705369,1740633033092,-221.0,0.00057691,120]
[354705370,1740633033101,-17484.90024109,0.00057791,15]
[354705371,1740633033111,-1000.0,0.00058435,120]
[354705372,1740633033122,-17830.0,0.00058463,7]
[354705373,1740633033132,-1252.0,0.00058498,120]
[354705374,1740633033141,-1252.0,0.00058498,120]
[354705375,1740633033151,-1252.0,0.00058498,120]
[354705376,1740633033160,-1252.0,0.00058498,120]
[354705377,1740633033169,-1252.0,0.00058498,120]
[354705378,1740633033179,-1252.0,0.00058498,120]
[354705379,1740633033188,-1252.0,0.00058498,120]
[354705380,1740633033198,-1252.0,0.00058498,120]
[354705381,1740633033208,-1252.0,0.00058498,120]
[354705382,1740633033217,-151.81,0.0005851,120]
[354705383,1740633033227,-17484.90024109,0.00059243,15]
[354705384,1740633033236,-1252.0,0.00059498,120]
[354705385,1740633033245,-1252.0,0.00059498,120]
[354705386,1740633033254,-1252.0,0.00059498,120]
[354705387,1740633033264,-1252.0,0.00059498,120]
[354705388,1740633033273,-1252.0,0.00059498,120]
[354705389,1740633033283,-1252.0,0.00059498,120]
[354705390,1740633033292,-1252.0,0.00059498,120]
[354705391,1740633033302,-502.06940485,0.00059583,15]
[354705392,1740633033311,-10000.0,0.0006,30]
[354705393,1740633033320,-4000.0,0.00060274,30]
[354705394,1740633033329,-1252.0,0.00060498,120]
[354705395,1740633033338,-1252.0,0.00060498,120]
[354705396,1740633033347,-1252.0,0.00060498,120]
[354705397,1740633033356,-1252.0,0.00060498,120]
[354705398,1740633033366,-17484.90024109,0.00060694,15]
[354705399,1740633033379,-748.0,0.000607,30]
[354705400,1740633033388,-232.0,0.000607,30]
[354705401,1740633033397,-367.0,0.000607,30]
[354705402,1740633033407,-527.0,0.000613,75]
[354705403,1740633033419,-500.0,0.000613,120]
[354705404,1740633033430,-500.0,0.000613,120]
[354705405,1740633033439,-500.0,0.000613,120]
[354705406,1740633033449,-500.0,0.000613,120]
[354705407,1740633033459,-500.0,0.000613,120]
[354705408,1740633033469,-679.0,0.000613,120]
[354705409,1740633033478,-508.0,0.000613,120]
[354705410,1740633033487,-1252.0,0.00061498,120]
[354705411,1740633033498,-1252.0,0.00061498,120]
[354705412,1740633033509,-1252.0,0.00061498,120]
[354705413,1740633033518,-1252.0,0.00061498,120]
[354705414,1740633033528,-17484.90024109,0.00062146,15]
[354705415,1740633033537,-1500.0,0.000622,90]
[354705416,1740633033547,-1252.0,0.00062498,120]
[354705417,1740633033556,-1252.0,0.00062498,120]
[354705418,1740633033566,-1252.0,0.00062498,120]
[354705419,1740633033576,-1252.0,0.00062498,120]
[354705420,1740633033586,-1252.0,0.00062498,120]
[354705421,1740633033595,-1252.0,0.00062498,120]
[354705422,1740633033604,-1252.0,0.00062498,120]
[354705423,1740633033614,-1252.0,0.00062498,120]
[354705424,1740633033625,-1252.0,0.00062498,120]
[354705425,1740633033635,-1252.0,0.00062498,120]
[354705426,1740633033644,-1252.0,0.00062498,120]
[354705427,1740633033654,-1229.68914803,0.00062498,120]
[354705428,1740633033666,-1252.0,0.00063498,120]
[354705429,1740633033676,-1252.0,0.00063498,120]
[354705430,1740633033686,-1252.0,0.00063498,120]
[354705431,1740633033695,-1252.0,0.00063498,120]
[354705432,1740633033705,-152.88,0.00063562,120]
[354705433,1740633033715,-500.0,0.00063596,120]
[354705434,1740633033724,-625.0,0.00063596,120]
[354705435,1740633033733,-17484.90024109,0.00063597,15]
[354705436,1740633033742,-557.98876523,0.000641,30]
[354705437,1740633033752,-1000.0,0.00064278,120]
[354705438,1740633033761,-300.0,0.000644,120]
[354705439,1740633033771,-1252.0,0.00064498,120]
[354705440,1740633033780,-1252.0,0.00064498,120]
[354705441,1740633033790,-1252.0,0.00064498,120]
[354705442,1740633033799,-1252.0,0.00064498,120]
[354705443,1740633033808,-1252.0,0.00064498,120]
[354705444,1740633033818,-1252.0,0.00064498,120]
[354705445,1740633033954,-1252.0,0.00064498,120]
[354705446,1740633033964,-1252.0,0.00064498,120]
[354705447,1740633033974,-1252.0,0.00064498,120]
[354705448,1740633033983,-1918.62682,0.000649,120]
[354705449,1740633033993,-514.01131546,0.00064999,120]
[354705450,1740633034002,-500.0,0.00064999,120]
[354705451,1740633034011,-500.0,0.00064999,120]
[354705452,1740633034020,-500.0,0.00064999,120]
[354705453,1740633034029,-500.0,0.00064999,120]
[354705454,1740633034038,-500.0,0.00064999,120]
[354705455,1740633034047,-500.0,0.00064999,120]
[354705456,1740633034056,-2004.19,0.00065,120]
[354705457,1740633034065,-2008.673,0.00065,120]
[354705458,1740633034074,-17484.90024109,0.00065049,15]
[354705459,1740633034084,-208.52,0.00065066,120]
[354705460,1740633034093,-500.0,0.00065149,120]
[354705461,1740633034102,-200.0,0.0006515,30]
[354705462,1740633034111,-819.9893,0.0006515,2]
[354705463,1740633034122,-1000.0,0.0006515,30]
[354705464,1740633034132,-964.64,0.0006515,2]
[354705465,1740633034141,-323.1226,0.0006515,2]
[354705466,1740633034150,-18663.7678,0.0006515,2]
[354705467,1740633034159,-931.2489845,0.00065211,37]
[354705468,1740633034169,-563850.17525587,0.00065248,120]
[354705469,1740633034178,-500.0,0.00065249,120]
[354705470,1740633034187,-500.0,0.00065249,120]
[354705471,1740633034196,-500.0,0.00065249,120]
[354705472,1740633034205,-500.0,0.00065249,120]
[354705473,1740633034215,-500.0,0.00065249,120]
[354705474,1740633034224,-500.0,0.00065249,120]
[354705475,1740633034233,-500.0,0.00065249,120]
[354705476,1740633034242,-500.0,0.00065249,120]
[354705477,1740633034251,-500.0,0.00065249,120]
[354705478,1740633034261,-500.0,0.00065249,120]
[354705479,1740633034270,-500.0,0.00065249,120]
[354705480,1740633034279,-500.0,0.00065249,120]
[354705481,1740633034288,-4797.61,0.00065249,120]
[354705482,1740633034297,-4797.61,0.00065249,120]
[354705483,1740633034307,-625.0,0.00065249,120]
[354705484,1740633034316,-625.0,0.00065249,120]
[354705485,1740633034325,-404038.24679867,0.0006525,120]
[354705486,1740633034377,-352.2871001,0.00036797,7]
[354705487,1740633034386,-355.14553294,0.0006525,120]
[354705488,1740633034398,-95606.60766839,0.0006525,120]
[354705489,1740633034407,-153.0,0.00065272,2]
[354705490,1740633034418,-153.0,0.00065285,2]
[354705491,1740633034428,-153.0,0.00065298,2]
[354705492,1740633034437,-153.0,0.00065311,2]
[354705493,1740633034446,-7500.0,0.000654,120]
[354705494,1740633034455,-165.11398895,0.00065404,46]
[354705495,1740633034466,-176.2041582,0.00065452,101]
[354705496,1740633034475,-1252.0,0.00065498,120]
[354705497,1740633034484,-1252.0,0.00065498,120]
[354705498,1740633034495,-1252.0,0.00065498,120]
[354705499,1740633034504,-1252.0,0.00065498,120]
[354705500,1740633034513,-1252.0,0.00065498,120]
[354705501,1740633034523,-1252.0,0.00065498,120]
[354705502,1740633034532,-1252.0,0.00065498,120]
[354705503,1740633034541,-1252.0,0.00065498,120]
[354705504,1740633034550,-3464.39379714,0.00065499,120]
[354705505,1740633034559,-500.0,0.00065499,120]
[354705506,1740633034568,-519.08872505,0.00065499,120]
[354705507,1740633034577,-500.0,0.00065499,120]
[354705508,1740633034587,-500.0,0.00065499,120]
[354705509,1740633034597,-500.0,0.00065499,120]
[354705510,1740633034606,-500.0,0.00065499,120]
[354705511,1740633034615,-301.94675,0.00065499,120]
[354705512,1740633034627,-500.0,0.00065499,120]
[354705513,1740633034636,-500.0,0.00065499,120]
[354705514,1740633034646,-500.0,0.00065499,120]
[354705515,1740633034656,-500.0,0.00065499,120]
[354705516,1740633034666,-4797.61,0.00065499,120]
[354705517,1740633034675,-4797.61,0.00065499,120]
[354705518,1740633034685,-625.0,0.00065499,120]
[354705519,1740633034695,-625.0,0.00065499,120]
[354705520,1740633034704,-3933.0,0.000655,25]
[354705521,1740633034713,-9825.01719726,0.000655,120]
[354705522,1740633034732,-17265.42624435,0.000655,120]
[354705523,1740633034743,-280.36440601,0.000655,120]
[354705753,1740633040384,-390.42518587,0.00025999,2]
[354705755,1740633040393,-352.2871001,0.0003821,8]
[354705757,1740633040402,-73.18771403,0.00039624,8]
[354706025,1740633043051,-279.09938607,0.00039624,8]
[354706027,1740633043060,-352.2871001,0.00041038,9]
[354706029,1740633043069,-144.77351383,0.00042452,9]
[354706349,1740633046265,-207.51358627,0.00042452,9]
[354706351,1740633046274,-50.76689656,0.00043866,9]
[354706473,1740633908643,50000.0,0.00015,2]
[354706474,1740633908670,50000.0,0.00015,2]
[354706475,1740633908697,50000.0,0.00015,2]
[354706476,1740633908728,50000.0,0.00015,2]
[354706477,1740633908761,20000.0,0.00015,2]
[354706478,1740633908787,50000.0,0.00015,2]
[354706479,1740633908814,5580.0,0.00015,2]
[354706481,1740634073588,50000.0,0.000139,2]
[354706482,1740634073612,16178.50679147,0.000139,2]
[354706483,1740634079772,31823.79516387,0.00014,2]
[354706484,1740634104159,1997.69804466,0.00014,2]
[354706485,1740634108268,284.09922914,0.0002806,30]
[354706486,1740634108732,559.44790441,0.0002806,30]
[354706487,1740634117968,-4919.92001433,0.000136,2]
[354706489,1740634118024,-4919.92001433,0.000136,2]
[354706490,1740634118063,-4919.92001433,0.000136,2]
[354706491,1740634118138,-4919.92001433,0.000136,2]
[354706492,1740634118199,-4919.92001433,0.000136,2]
[354706493,1740634118248,-872.85837252,0.000136,2]
[354706502,1740634232343,-300.0,0.00013589,2]
[354706503,1740634232352,-944.37019934,0.0001359,2]
[354706504,1740634232363,-1500.0,0.0001359,2]
[354706505,1740634232402,-171550.32881655,0.0001359,2]
[354706506,1740634232464,-1312.86736666,0.0001359,2]
[354706567,1740634238079,-677.2500001,0.0001359,2]
[354706568,1740634238090,-18985.53141083,0.0001359,2]
[354706747,1740634240174,-2323.33334941,0.0001359,2]
[354706749,1740634240184,-2481.79038208,0.000136,2]
[354706751,1740634240195,-359.2564977,0.000136,2]
[354706768,1740634240354,-17160.27311426,0.000136,2]
[354707146,1740634244509,-2468.07238356,0.000136,2]
[354707147,1740634244520,-11654.54613799,0.000136,2]
[354707148,1740634244531,-5328.44616753,0.000136,2]
[354707277,1740634246370,-135178.09940612,0.000136,2]
[354707279,1740634246379,-1978.353687,0.00014,2]
[354707281,1740634246388,-9885.49553781,0.0001439,2]
[354707283,1740634246398,-263.87000562,0.00014999,2]
[354707285,1740634246407,-541.37512496,0.00014999,2]
[354707287,1740634246416,-25475.59738679,0.00015,2]
[354707296,1740634246489,-864.72532184,0.00014999,2]
[354707298,1740634246498,-84262.32781882,0.00015,2]
[354708583,1740634321424,5439.59217248,0.0002806,60]
[354708584,1740634462518,-500.0,0.00014999,2]
[354708585,1740634462543,-294.97633452,0.00014999,2]
[354708586,1740634462572,-184.28050133,0.00014999,2]
[354708587,1740634462601,-153.07400901,0.00014999,2]
[354708588,1740634462628,-548.05475944,0.00014999,2]
[354708589,1740634462660,-500.0,0.00014999,2]
[354708590,1740634462690,-150.0,0.00014999,2]
[354708591,1740634462719,-27669.6143957,0.00015,2]
[354708592,1740634527574,-1000.0,0.000149,2]
[354708593,1740634527602,-1073.6947,0.000149,2]
[354708594,1740634527630,-9647.0,0.000149,2]
[354708595,1740634527663,-38279.3053,0.00015,2]
[354708596,1740634528687,-50000.0,0.00015,2]
[354708597,1740634529747,-50000.0,0.00015,2]
[354708598,1740634592166,-1596.9972,0.000149,2]
[354708599,1740634592195,-48403.0028,0.00015,2]
[354708600,1740634593244,-50000.0,0.00015,2]
[354708601,1740634594390,-50000.0,0.00015,2]
[354708602,1740634595463,-50000.0,0.00015,2]
[354708603,1740634596564,-50000.0,0.00015,2]
[354708604,1740634597577,-50000.0,0.00015,2]
[354708605,1740634598557,-50000.0,0.00015,2]
[354708606,1740634807591,12576.0,0.00028065,30]
[354708619,1740635435681,-724.464,0.000147,2]
[354708620,1740635435691,-75.53597,0.000148,2]
[354708621,1740635435702,-221.93132432,0.000148,2]
[354708622,1740635435711,-297.46729431,0.0001485,2]
[354708623,1740635435720,-1000.0,0.000149,2]
[354708624,1740635435730,-151.7338022,0.000149,2]
[354708625,1740635435743,-145.73349211,0.000149,2]
[354708626,1740635435753,-948.90979771,0.000149,2]
[354708627,1740635435806,-15.83330229,0.000149,2]
[354708628,1740635435816,-848.27219244,0.0001499,2]
[354708629,1740635435827,-1847.0730575,0.0001499,2]
[354708630,1740635435838,-41568.38360248,0.0001499,2]
[354708631,1740635435847,-201363.09219521,0.00015,2]
[354708632,1740635435869,-613522.91462718,0.00015,2]
[354708633,1740635435878,-1598.85568,0.00015,2]
[354708634,1740635435888,-5575.01663062,0.00016399,2]
[354708635,1740635435897,-450.0,0.00016499,2]
[354708636,1740635435906,-3009.26418852,0.0001987,2]
[354708637,1740635435915,-1598.85568,0.0002,2]
[354708638,1740635435924,-5575.01663059,0.00021816,2]
[354708639,1740635435934,-218.28937967,0.00023,3]
[354708640,1740635435943,-218.2893796,0.00023,3]
[354708641,1740635435952,-218.2893796,0.00023,3]
[354708642,1740635435961,-218.2893796,0.00023,3]
[354708643,1740635435970,-500.0,0.0002315,2]
[354708644,1740635435979,-218.2893796,0.00023934,3]
[354708645,1740635435990,-1598.85569,0.00025,2]
[354708646,1740635435999,-320.07,0.00025519,2]
[354708647,1740635436008,-218.2893796,0.00025693,4]
[354708648,1740635436017,-16621.36779828,0.0002597,2]
[354708649,1740635436029,-116342.31145529,0.0002597,2]
[354708650,1740635436039,-176.20415818,0.000265,2]
[354708651,1740635436050,-179.54541445,0.000266,2]
[354708653,1740635436059,-215.94161825,0.000267,2]
[354708655,1740635436068,-215.94161825,0.000267,2]
[354708657,1740635436077,-250.0,0.00026836,2]
[354708659,1740635436087,-184.83,0.00026849,2]
[354708661,1740635436096,-157.41,0.00026849,2]
[354708663,1740635436105,-250.0,0.00027,2]
[354708665,1740635436114,-869.16571896,0.00027062,2]
[354708667,1740635436123,-5575.01663059,0.00027233,2]
[354708669,1740635436132,-218.2893796,0.00027452,4]
[354708671,1740635436141,-320.07,0.00027782,2]
[354708673,1740635436150,-151.81,0.00027787,120]
[354708675,1740635436159,-150.0,0.00028,30]
[354708677,1740635436168,-150.0,0.00028015,7]
[354708679,1740635436177,-4070.80143291,0.00028062,2]
[354708681,1740635436187,-300.0,0.00029,2]
[354708683,1740635436196,-218.2893796,0.0002921,5]
[354708685,1740635436206,-1598.85568,0.0003,2]
[354708687,1740635436216,-320.07,0.00030046,2]
[354708689,1740635436226,-1000.0,0.00030533,2]
[354708691,1740635436238,-218.2893796,0.00030969,5]
[354708693,1740635436248,-350.0,0.00031,2]
[354708695,1740635436256,-200.0,0.00031583,2]
[354708697,1740635436266,-170.8,0.00032145,2]
[354708699,1740635436275,-150.53,0.00032275,2]
[354708701,1740635436284,-320.07,0.0003231,2]
[354708703,1740635436294,-83098.48650892,0.000326,2]
[354708754,1740635438280,-30861.54277311,0.000326,2]
[354708755,1740635438289,-5575.01663059,0.00032649,2]
[354708756,1740635438299,-218.2893796,0.00032728,6]
[354708757,1740635438310,-400.0,0.00033,2]
[354708758,1740635438319,-344.13,0.00033678,2]
[354708759,1740635438329,-1000.0,0.0003435,2]
[354708760,1740635438338,-218.2893796,0.00034486,6]
[354708761,1740635438348,-320.07,0.00034574,2]
[354708762,1740635438358,-1598.85569,0.00035,2]
[354708763,1740635438367,-218.2893796,0.00036245,7]
[354708764,1740635438376,-320.07,0.00036838,2]
[354708765,1740635438386,-218.2893796,0.00038003,8]
[354708766,1740635438395,-5575.01663059,0.00038066,2]
[354708767,1740635438404,-1000.0,0.00038167,2]
[354708768,1740635438415,-724.464,0.00038525,52]
[354708769,1740635438424,-320.07,0.00039102,2]
[354708770,1740635438433,-313.70535486,0.00039561,15]
[354708771,1740635438443,-362.4290505,0.00039561,15]
[354708772,1740635438453,-593.09635909,0.00039562,2]
[354708773,1740635438465,-1167.91008124,0.00039562,2]
[354708774,1740635438477,-305.77424928,0.00039562,2]
[354708775,1740635438514,-4633.15147471,0.00039562,2]
[354708776,1740635438526,-41756.19657736,0.00039562,2]
[354708777,1740635438582,-4823.27885289,0.00039562,2]
[354708778,1740635438593,-11107.75147013,0.00039562,2]
[354708781,1740635440575,-1054.47054506,0.00039562,2]
[354708782,1740635440587,-52676.48010946,0.00039562,2]
[354708783,1740635440741,-1018.45828453,0.00039562,2]
[354708990,1740635444738,-7.28154721,0.000149,2]
[354709008,1740635444895,-259.76035279,0.000149,2]
[354709010,1740635444904,-22809.6775856,0.00039562,2]
[354709012,1740635444915,-221.3895462,0.00039562,2]
[354709014,1740635444925,-218.2893796,0.00039762,8]
[354709016,1740635444935,-60.3210742,0.000399,30]
[354709028,1740635446683,-1954.82000009,0.000399,30]
[354709029,1740635446694,-9068.4486635,0.000399,30]
[354709031,1740635529823,1879.0,0.00019711,120]
[354709033,1740635983563,5200.72953,0.00019711,120]
[354709034,1740635983596,4799.27047,0.00019711,120]
[354709035,1740636010383,2000.0,0.000135,2]
[354711008,1740636631584,-300.0,0.00014899,2]
[354711010,1740636631594,-1000.0,0.000149,2]
[354711012,1740636631604,-190.76475704,0.000149,2]
[354711014,1740636631618,-43296.83368114,0.000149,2]
[354711016,1740636631627,-215.94161825,0.000149,2]
[354711018,1740636631636,-300.0,0.00016308,2]
[354711020,1740636631645,-153.79,0.00026849,2]
[354711021,1740636631655,-207.37491062,0.000269,4]
[354711023,1740636631664,-250.0,0.00027,2]
[354711025,1740636631674,-10000.0,0.00028071,30]
[354711028,1740636631684,-5271.40853646,0.00028071,30]
[354711030,1740636631695,-4999.99999,0.00028071,30]
[354711032,1740636631705,-207.37491062,0.00029058,5]
[354711033,1740636631714,-207.37491062,0.00031216,5]
[354711035,1740636631724,-207.37491062,0.00033374,6]
[354711036,1740636631733,-207.37491062,0.00035532,7]
[354711037,1740636631742,-5550.0,0.000356,5]
[354711038,1740636631751,-3000.0,0.00035731,2]
[354711039,1740636631761,-3000.0,0.00035733,2]
[354711040,1740636631770,-3000.0,0.00035737,2]
[354711041,1740636631779,-3000.0,0.00035794,2]
[354711042,1740636631789,-1402.21,0.00035795,2]
[354711043,1740636631798,-3000.0,0.00035804,2]
[354711044,1740636631807,-207.37491062,0.00037689,7]
[354711045,1740636631816,-684.478,0.00039562,55]
[354711046,1740636631826,-207.37491062,0.00039847,8]
[354711047,1740636631835,-11932.94904277,0.000399,30]
[354711048,1740636631847,-3961.95512933,0.000399,30]
[354711049,1740636631859,-4036.23780896,0.000399,30]
[354711050,1740636631870,-5402.91999996,0.000399,30]
[354711051,1740636631881,-2121.74553344,0.000399,30]
[354711052,1740636631892,-996.59053784,0.000399,30]
[354711053,1740636631903,-497.01426088,0.000399,30]
[354711054,1740636631913,-80.93937089,0.00040616,2]
[354711055,1740636631924,-72.85062911,0.00040616,2]
[354711056,1740636631933,-207.37491062,0.00042005,9]
[354711057,1740636631943,-2000.0,0.00042834,5]
[354711058,1740636631952,-207.37491062,0.00044163,10]
[354711059,1740636631961,-157.41,0.00045205,2]
[354711060,1740636631970,-207.37491062,0.00046321,10]
[354711061,1740636631979,-361.27454794,0.000464,30]
[354711062,1740636631990,-5.72545206,0.000464,30]
[354711063,1740636631999,-302.40800225,0.00046923,2]
[354711064,1740636632014,-535.10699775,0.00046923,2]
[354711065,1740636632024,-272.2,0.00047335,2]
[354711066,1740636632034,-306.0,0.000477,120]
[354711067,1740636632044,-150.0,0.00048252,2]
[354711068,1740636632053,-207.37491062,0.00048479,11]
[354711069,1740636632062,-1000.0,0.00049,120]
[354711070,1740636632071,-150.53,0.00049081,2]
[354711071,1740636632080,-1500.0,0.00049172,120]
[354711072,1740636632089,-272.2,0.00049599,2]
[354711073,1740636632098,-163.5,0.00049729,120]
[354711074,1740636632108,-7788.1043,0.0004978,2]
[354711075,1740636632118,-8892.916872,0.0004988,30]
[354711076,1740636632130,-6099.9999999,0.0004988,30]
[354711077,1740636632141,-4880.0,0.0004988,30]
[354711078,1740636632152,-280.36440601,0.0004988,30]
[354711080,1740636632163,-5626.7668008,0.0004988,30]
[354711082,1740636632175,-970.77143134,0.0004988,30]
[354711084,1740636632187,-2821.48265851,0.0004988,30]
[354711087,1740636632198,-427.57193665,0.0004988,30]
[354711089,1740636632209,-950.50976812,0.0004988,30]
[354711091,1740636632220,-22262.81602387,0.0004988,30]
[354711093,1740636632230,-25000.0,0.0005,120]
[354711095,1740636632239,-1000.0,0.00050427,120]
[354711097,1740636632249,-2787.50831534,0.00050569,15]
[354711099,1740636632258,-207.37491062,0.00050637,12]
[354711101,1740636632267,-250.0,0.00051505,120]
[354711103,1740636632277,-150.0,0.00051558,7]
[354711105,1740636632287,-166.38,0.00051646,2]